bitfinex-derivatives/quotes_SOLF0:USTF0_20241008
["timestamp","ask_amount","ask_price","bid_price","bid_amount"]
[1728398488332,6.26,143.07,143.04,3.4965]
[1728398488533,6.26,143.07,143.03,0.12502]
[1728398489041,6.26,143.07,143.04,3.4966]
[1728398489237,9.7561,143.07,143.04,3.4966]
[1728398489635,6.26,143.07,143.03,0.12502]
[1728398489840,4.92688668,143.1,143.07,3.496]
[1728398489841,33.10218668,143.1,143.07,3.496]
[1728398490446,4.92688668,143.1,143.09,3.4955]
[1728398490649,7.6874,143.1,143.09,3.4955]
[1728398491453,7.6874,143.1,143.08,3.4956]
[1728398492260,11.1827,143.1,143.08,3.4956]
[1728398492655,3.4955,143.09,143.07,3.4959]
[1728398493044,18.44,143.08,143.03,0.12502]
[1728398493255,3.4961,143.07,143.03,0.12502]
[1728398494753,3.4961,143.07,143.04,3.4966]
[1728398495161,21.9357,143.09,143.03,0.12502]
[1728398495455,18.44,143.09,143.03,0.12502]
[1728398495861,18.44,143.09,143.07,3.4958]
[1728398496152,18.44,143.09,143.03,0.12502]
[1728398496959,21.9355,143.09,143.06,3.4961]
[1728398498364,21.9355,143.09,143.05,3.4963]
[1728398499667,21.9355,143.09,143.03,0.12502]
[1728398499668,21.9355,143.09,143.06,3.4962]
[1728398501864,11.1827,143.1,143.08,3.4957]
[1728398504968,23.30088639,143.11,143.03,0.12502]
[1728398505271,21.88608639,143.11,143.03,9.04542]
[1728398505967,25.38108639,143.11,143.05,3.4964]
[1728398506158,18.44,143.09,143.03,9.04542]
[1728398506359,18.44,143.09,143.03,7.69732]
[1728398506567,18.44,143.07,143.05,3.4964]
[1728398507864,21.9361,143.07,143.04,3.4965]
[1728398508166,6.24,143.11,143.03,0.12502]
[1728398508374,18.44,143.1,143.03,0.12502]
[1728398508567,3.4955,143.09,143.06,3.4961]
[1728398509362,3.4955,143.09,143.07,3.4959]
[1728398509770,21.9353,143.1,143.03,0.12502]
[1728398509972,18.44,143.1,143.03,0.12502]
[1728398510357,3.4957,143.08,143.03,0.12502]
[1728398510561,3.4957,143.08,143.05,3.4963]
[1728398510757,3.4957,143.08,143.03,0.12502]
[1728398510970,3.4956,143.09,143.06,3.4961]
[1728398512162,3.4956,143.09,143.07,3.4959]
[1728398515278,21.9359,143.08,143.04,3.4966]
[1728398515576,18.44,143.06,143.03,0.12502]
[1728398516076,6.24,143.07,143.06,3.4962]
[1728398517870,28.1754,143.1,143.08,3.4956]
[1728398518068,31.59725812,143.1,143.08,3.4956]
[1728398518571,18.44,143.1,143.09,3.4955]
[1728398518976,18.44,143.1,143.03,0.12502]
[1728398519178,21.90626151,143.1,143.03,0.12502]
[1728398519366,25.40156151,143.1,143.08,3.4956]
[1728398519978,21.90626151,143.1,143.08,3.4956]
[1728398520379,18.44,143.1,143.03,0.12502]
[1728398520678,9.7351,143.11,143.03,0.12502]
[1728398520679,9.7351,143.11,143.09,3.4955]
[1728398520887,3.4952,143.1,143.03,18.56502]
[1728398521269,9.78128713,143.11,143.03,18.56502]
[1728398521482,3.4953,143.1,143.08,3.4956]
[1728398521674,9.78128713,143.11,143.03,25.55882]
[1728398521675,6.24,143.11,143.03,25.55882]
[1728398521875,75.44,143.16,143.03,25.55882]
[1728398521876,18.56502,143.15,143.07,18.44]
[1728398522077,18.56502,143.15,143.14,3.4943]
[1728398522078,0.12502,143.15,143.14,3.4943]
[1728398523177,0.12502,143.15,143.13,3.4944]
[1728398523373,0.12502,143.15,143.1,7.5816]
[1728398525480,0.12502,143.15,143.14,3.4943]
[1728398527408,0.12502,143.15,143.1,7.5816]
[1728398527687,0.12502,143.15,143.13,3.4944]
[1728398529994,0.12502,143.15,143.1,7.5816]
[1728398530185,0.12502,143.15,143.14,3.4943]
[1728398534285,0.12502,143.21,143.14,6.22]
[1728398534495,0.12502,143.21,143.15,1.4429]
[1728398535287,3.61762,143.21,143.15,1.4429]
[1728398535486,18.56502,143.21,143.14,6.22]
[1728398535687,18.44,143.19,143.16,3.4936]
[1728398535883,18.44,143.19,143.14,6.22]
[1728398537189,18.44,143.19,143.17,3.4934]
[1728398539295,22.05772,143.21,143.18,3.4933]
[1728398540797,18.56502,143.21,143.19,3.493]
[1728398541408,0.12502,143.21,143.14,6.22]
[1728398541694,0.12502,143.21,143.2,3.4928]
[1728398542504,0.12502,143.21,143.19,3.4929]
[1728398542798,0.12502,143.21,143.15,3.45053897]
[1728398543097,0.12502,143.21,143.19,3.4929]
[1728398543489,0.12502,143.21,143.15,3.45053897]
[1728398543490,18.56502,143.21,143.15,3.45053897]
[1728398543800,18.44,143.19,143.14,6.22]
[1728398543991,18.56502,143.21,143.14,6.22]
[1728398544595,18.44,143.19,143.14,6.22]
[1728398544803,21.9332,143.19,143.16,3.4937]
[1728398547000,18.44,143.19,143.13,6.22]
[1728398547702,21.9337,143.17,143.14,3.4943]
[1728398547901,18.44,143.16,143.11,1.4429]
[1728398548310,18.44,143.16,143.1,1.3416]
[1728398548704,3.4942,143.15,143.11,3.4948]
[1728398548898,18.44,143.16,143.1,1.3416]
[1728398549202,6.22,143.17,143.12,3.4947]
[1728398549203,24.66,143.17,143.12,3.4947]
[1728398549407,24.66,143.17,143.1,1.3416]
[1728398550196,6.22,143.17,143.11,18.44]
[1728398550405,21.9331,143.19,143.16,3.4936]
[1728398551001,18.44,143.19,143.16,3.4936]
[1728398552308,21.933,143.19,143.16,3.4936]
[1728398552606,18.44,143.17,143.1,2.6912]
[1728398552814,3.4938,143.16,143.1,7.5616]
[1728398553109,18.44,143.15,143.1,7.5616]
[1728398553298,21.934,143.15,143.1,7.5616]
[1728398553710,3.4943,143.14,143.11,3.4948]
[1728398553912,18.44,143.15,143.11,3.4948]
[1728398554306,3.4944,143.14,143.11,3.4948]
[1728398554616,21.85759268,143.14,143.1,3.4952]
[1728398554909,3.4946,143.13,143.1,3.4952]
[1728398555107,18.44,143.14,143.09,0.12502]
[1728398555309,21.9343,143.14,143.11,3.4949]
[1728398555505,24.66,143.16,143.09,0.12502]
[1728398555706,24.66,143.16,143.11,3.495]
[1728398555910,28.1539,143.16,143.09,0.12502]
[1728398556410,3.4942,143.15,143.11,3.495]
[1728398556611,21.90735899,143.14,143.09,0.12502]
[1728398557713,3.4946,143.13,143.1,3.4951]
[1728398558015,18.44,143.14,143.09,0.12502]
[1728398558411,18.44,143.14,143.11,3.4948]
[1728398559027,21.9344,143.14,143.1,3.4951]
[1728398560315,21.9344,143.14,143.09,3.62042]
[1728398560316,3.4948,143.12,143.09,3.62042]
[1728398560517,18.44,143.11,143.09,0.12502]
[1728398560720,18.44,143.11,143.03,6.34502]
[1728398560921,18.44,143.09,143.03,6.34502]
[1728398561523,21.9356,143.09,143.05,3.4963]
[1728398561827,21.92703755,143.09,143.05,3.4963]
[1728398562230,3.4958,143.08,143.05,3.4963]
[1728398562424,21.92703755,143.09,143.03,0.12502]
[1728398562634,18.44,143.07,143.03,0.12502]
[1728398563025,3.4964,143.06,143.03,0.12502]
[1728398563225,18.44,143.05,143.03,0.12502]
[1728398563725,3.4967,143.04,143.03,0.12502]
[1728398564932,6.22,143.04,143.0,3.4976]
[1728398565138,3.497,143.03,143.0,3.4976]
[1728398565631,6.22,143.04,143.02,3.4971]
[1728398566235,6.22,143.04,142.97,0.12502]
[1728398566935,21.9366,143.05,142.97,0.12502]
[1728398567135,28.1566,143.05,142.97,0.12502]
[1728398567545,24.66,143.05,143.02,3.4972]
[1728398568939,21.9366,143.05,143.02,3.4972]
[1728398569136,18.44,143.05,143.01,3.4974]
[1728398569340,18.44,143.02,142.97,0.12502]
[1728398569542,18.44,143.0,142.97,0.12502]
[1728398569841,18.44,142.98,142.92,0.12518]
[1728398570029,0.12502,143.03,142.97,18.44]
[1728398570228,0.12502,143.03,142.99,18.44]
[1728398570533,18.56502,143.09,143.02,18.44]
[1728398570534,0.12502,143.09,143.02,18.44]
[1728398570736,0.12502,143.09,143.04,18.44]
[1728398570938,0.12502,143.09,143.08,3.4957]
[1728398571130,0.12502,143.09,143.04,6.22]
[1728398571931,0.12502,143.09,143.08,3.4957]
[1728398572944,0.12502,143.09,143.08,9.7157]
[1728398573736,0.12502,143.15,143.08,9.7157]
[1728398575843,0.12502,143.21,143.17,6.22]
[1728398576340,0.12502,143.21,143.18,3.4931]
[1728398577241,0.12502,143.21,143.19,3.493]
[1728398578246,0.12502,143.21,143.2,3.4928]
[1728398578442,32.3459,143.31,143.18,29.54]
[1728398578636,32.3459,143.31,143.2,29.54]
[1728398578637,6.23242688,143.31,143.2,29.54]
[1728398578835,6.23242688,143.31,143.21,6.22]
[1728398579252,9.72262688,143.31,143.26,3.4913]
[1728398579450,1.3794,143.31,143.26,3.4913]
[1728398579652,35.86502,143.33,143.26,3.4913]
[1728398580037,39.30830934,143.33,143.26,3.4913]
[1728398580351,0.12502,143.33,143.26,3.4913]
[1728398581245,0.12502,143.33,143.25,6.2]
[1728398581550,0.12502,143.33,143.27,29.54]
[1728398581938,0.12502,143.33,143.32,3.4899]
[1728398582951,0.12502,143.39,143.31,6.2]
[1728398583448,29.54,143.37,143.27,0.12502]
[1728398583647,29.54,143.37,143.28,6.2]
[1728398583881,29.54,143.37,143.27,0.12502]
[1728398584046,6.32502,143.39,143.27,0.12502]
[1728398584047,29.54,143.35,143.27,0.12502]
[1728398584246,35.74,143.35,143.27,0.12502]
[1728398584546,29.54,143.32,143.27,0.12502]
[1728398584746,29.54,143.32,143.27,3.61592]
[1728398585150,29.54,143.32,143.27,0.12502]
[1728398585752,29.54,143.3,143.27,0.12502]
[1728398586346,33.0304,143.3,143.27,0.12502]
[1728398586543,29.54,143.3,143.27,0.12502]
[1728398587352,3.4908,143.29,143.27,0.12502]
[1728398587844,29.54,143.3,143.27,0.12502]
[1728398588050,3.4908,143.29,143.27,0.12502]
[1728398588353,29.54,143.28,143.21,0.12502]
[1728398588944,29.54,143.26,143.21,0.12502]
[1728398589644,33.0316,143.26,143.21,3.61742]
[1728398589848,29.54,143.26,143.21,3.61742]
[1728398590373,3.40567028,143.25,143.21,0.12502]
[1728398590551,29.54,143.24,143.21,0.12502]
[1728398590748,3.4923,143.22,143.21,0.12502]
[1728398591053,29.54,143.24,143.16,6.2]
[1728398591054,33.02876095,143.24,143.16,6.2]
[1728398591256,33.02876095,143.24,143.13,3.4944]
[1728398591257,29.54,143.19,143.13,3.4944]
[1728398591450,29.54,143.19,143.12,6.2]
[1728398591653,33.09169368,143.19,143.11,6.2]
[1728398591852,3.4938,143.16,143.1,6.2]
[1728398592043,3.4938,143.16,143.09,2.89832]
[1728398592044,29.54,143.16,143.09,0.12502]
[1728398592244,1.3204,143.18,143.04,3.4967]
[1728398592245,3.4958,143.08,143.04,3.4967]
[1728398592447,35.74,143.11,143.04,3.4967]
[1728398592648,6.2,143.11,143.01,2.7733]
[1728398592953,35.74,143.13,143.02,29.54]
[1728398593157,35.74,143.13,143.04,6.2]
[1728398594253,35.74,143.13,143.01,2.7733]
[1728398594254,29.54,143.11,143.01,2.7733]
[1728398594554,3.4955,143.09,143.04,3.4966]
[1728398594753,35.74,143.09,142.97,29.66502]
[1728398594942,35.74,143.09,143.0,6.2]
[1728398595147,3.4958,143.08,143.03,3.62192]
[1728398595454,35.74,143.09,143.03,0.12502]
[1728398595657,39.2356,143.09,143.04,3.4965]
[1728398595856,6.2,143.09,143.03,0.12502]
[1728398596255,6.2,143.12,143.03,0.12502]
[1728398596452,35.74,143.13,143.04,6.2]
[1728398596952,35.74,143.13,143.04,35.74]
[1728398596953,6.2,143.13,143.04,35.74]
[1728398597157,6.2,143.13,143.04,39.16275957]
[1728398597358,6.2,143.13,143.11,3.495]
[1728398597554,0.12502,143.15,143.04,39.16275957]
[1728398597756,0.12502,143.15,143.06,29.54]
[1728398598651,0.12502,143.15,143.09,29.54]
[1728398598853,0.12502,143.15,143.14,3.4943]
[1728398599153,0.12502,143.15,143.1,6.2]
[1728398599556,0.12502,143.15,143.14,3.4943]
[1728398600362,0.12502,143.15,143.14,9.6943]
[1728398600857,0.12502,143.15,143.11,6.2]
[1728398601459,0.12502,143.15,143.14,3.4943]
[1728398603158,0.12502,143.15,143.11,6.2]
[1728398603159,0.12502,143.15,143.13,3.4945]
[1728398603471,0.12502,143.15,143.11,6.2]
[1728398603762,0.12502,143.15,143.13,3.4943]
[1728398603965,0.12502,143.15,143.06,29.54]
[1728398604158,0.12502,143.15,143.12,3.4947]
[1728398604460,0.12502,143.15,143.09,6.2]
[1728398605064,0.12502,143.15,143.09,35.74]
[1728398605463,0.12502,143.15,143.14,3.4943]
[1728398608968,0.12502,143.21,143.19,3.4928]
[1728398609155,0.12502,143.21,143.12,3.41606746]
[1728398609156,0.12502,143.21,143.17,6.2]
[1728398610259,0.12502,143.21,143.2,3.4928]
[1728398610762,0.12502,143.21,143.17,6.2]
[1728398610964,0.12502,143.21,143.19,3.4929]
[1728398611167,0.12502,143.21,143.17,6.2]
[1728398611871,0.12502,143.21,143.2,3.4928]
[1728398612767,0.12502,143.27,143.26,3.4913]
[1728398612972,0.12502,143.27,143.22,6.2]
[1728398613174,0.12502,143.27,143.23,6.2]
[1728398613379,0.12502,143.27,143.26,3.4913]
[1728398617578,0.12502,143.33,143.32,3.4899]
[1728398620676,0.12502,143.33,143.24,29.54]
[1728398620879,0.12502,143.33,143.25,6.18]
[1728398621280,3.49,143.32,143.28,3.4906]
[1728398622387,3.4901,143.31,143.27,3.491]
[1728398623476,40.78788492,143.33,143.24,6.18]
[1728398624088,37.26562,143.33,143.24,6.18]
[1728398624791,3.49,143.32,143.28,3.4908]
[1728398625985,37.26562,143.33,143.28,3.4908]
[1728398626188,38.58472,143.33,143.28,3.4908]
[1728398626583,3.4903,143.31,143.28,3.4908]
[1728398626788,3.48209672,143.32,143.27,3.491]
[1728398627084,29.54,143.31,143.24,6.18]
[1728398627282,29.54,143.31,143.25,3.4915]
[1728398627483,29.54,143.31,143.23,6.18]
[1728398629092,29.54,143.31,143.19,32.2804]
[1728398629389,3.4909,143.28,143.25,3.4914]
[1728398629581,29.54,143.31,143.22,6.18]
[1728398630580,42.13243763,143.33,143.22,39.28496949]
[1728398631175,3.4901,143.32,143.28,3.4907]
[1728398631380,42.13243763,143.33,143.28,3.4907]
[1728398631687,3.4904,143.3,143.27,3.4908]
[1728398631892,42.13243763,143.33,143.22,39.28496949]
[1728398632992,42.13243763,143.33,143.22,35.72]
[1728398633180,3.4905,143.3,143.27,3.491]
[1728398633379,42.13243763,143.33,143.27,3.491]
[1728398633583,42.13243763,143.33,143.22,35.72]
[1728398633881,42.13243763,143.33,143.27,3.4911]
[1728398634087,42.13243763,143.33,143.22,39.12589304]
[1728398634284,42.13243763,143.33,143.22,6.18]
[1728398634585,29.54,143.31,143.22,6.18]
[1728398634890,1.0,143.32,143.22,6.18]
[1728398635890,3.4905,143.3,143.27,3.4909]
[1728398636280,1.0,143.32,143.31,3.4901]
[1728398636497,1.0,143.32,143.25,29.54]
[1728398636681,6.35442,143.33,143.31,3.49]
[1728398636884,6.35442,143.33,143.25,29.54]
[1728398637183,1.54562,143.33,143.28,3.4908]
[1728398637386,1.54562,143.33,143.26,6.18]
[1728398637793,1.54562,143.33,143.31,3.4899]
[1728398638891,1.54562,143.33,143.32,3.4899]
[1728398639094,0.12502,143.33,143.32,3.4899]
[1728398640693,0.12502,143.33,143.3,3.4902]
[1728398641592,3.66267952,143.33,143.25,6.18]
[1728398641791,0.12502,143.33,143.25,6.18]
[1728398641987,3.61472,143.33,143.3,3.4902]
[1728398642291,3.61472,143.33,143.25,6.18]
[1728398642292,0.12502,143.33,143.25,6.18]
[1728398642492,0.12502,143.33,143.27,3.491]
[1728398642493,3.4901,143.32,143.27,3.491]
[1728398642700,0.12502,143.33,143.25,6.18]
[1728398643000,3.4902,143.31,143.28,3.4908]
[1728398643206,6.18,143.33,143.25,6.18]
[1728398643397,6.18,143.33,143.27,0.12502]
[1728398644101,3.4905,143.3,143.27,0.12502]
[1728398644297,9.61868393,143.33,143.27,0.12502]
[1728398644502,3.4899,143.32,143.27,0.12502]
[1728398645094,3.43868393,143.33,143.27,0.12502]
[1728398645303,35.72,143.34,143.27,0.12502]
[1728398645695,3.4899,143.32,143.27,3.61612]
[1728398645895,1.3416,143.31,143.27,0.12502]
[1728398646395,3.4905,143.3,143.28,3.4908]
[1728398647208,1.3416,143.31,143.28,3.4908]
[1728398647608,1.3416,143.31,143.27,0.12502]
[1728398648305,9.72198754,143.34,143.27,0.12502]
[1728398649311,3.4897,143.33,143.3,3.4903]
[1728398650013,3.4897,143.33,143.27,0.12502]
[1728398650207,3.4897,143.33,143.3,3.4902]
[1728398650816,3.54198754,143.34,143.32,3.4898]
[1728398651015,1.3794,143.35,143.27,6.30502]
[1728398651420,1.3794,143.35,143.33,3.4895]
[1728398651612,6.38623784,143.37,143.27,7.61292]
[1728398651613,0.20623784,143.37,143.29,3.51825563]
[1728398651816,0.20623784,143.37,143.29,29.54]
[1728398652110,0.20623784,143.37,143.3,3.53221558]
[1728398652319,0.20623784,143.37,143.31,6.18]
[1728398652511,0.20623784,143.37,143.35,3.489]
[1728398652720,4.9213,143.38,143.35,3.489]
[1728398653111,3.4887,143.37,143.35,3.489]
[1728398653303,5.00858987,143.38,143.33,3.4895]
[1728398653714,3.489,143.36,143.33,3.4895]
[1728398654451,3.489,143.36,143.34,3.4894]
[1728398654814,3.489,143.36,143.31,6.18]
[1728398655011,3.4896,143.33,143.3,3.4903]
[1728398655611,3.4896,143.33,143.28,6.18]
[1728398655918,3.4897,143.33,143.3,3.4902]
[1728398656229,1.4161,143.35,143.3,3.4902]
[1728398656410,3.4897,143.33,143.31,3.4901]
[1728398658416,1.4161,143.35,143.32,3.4897]
[1728398658818,1.4161,143.35,143.28,6.18]
[1728398659219,11.18858987,143.38,143.28,6.18]
[1728398659413,3.4888,143.37,143.34,3.4893]
[1728398659619,11.18858987,143.38,143.34,3.4893]
[1728398659916,3.489,143.36,143.34,3.4893]
[1728398660108,11.18858987,143.38,143.31,3.4899]
[1728398660312,11.18858987,143.38,143.28,6.18]
[1728398660313,29.54,143.36,143.28,6.18]
[1728398661038,11.18858987,143.38,143.28,6.18]
[1728398661215,11.18858987,143.38,143.28,35.72]
[1728398661416,11.18858987,143.38,143.34,3.4893]
[1728398662113,11.18858987,143.38,143.28,6.18]
[1728398662523,3.4895,143.34,143.31,3.49]
[1728398662922,3.4895,143.34,143.28,6.18]
[1728398663510,3.4895,143.34,143.31,3.4899]
[1728398664728,3.4891,143.35,143.3,3.4902]
[1728398664923,11.18858987,143.38,143.3,3.4902]
[1728398665129,29.54,143.36,143.3,3.4902]
[1728398665336,3.4895,143.34,143.31,3.4901]
[1728398665921,3.4896,143.33,143.31,3.4901]
[1728398666223,29.54,143.36,143.27,0.12502]
[1728398666526,3.4902,143.31,143.27,0.12502]
[1728398666722,6.18,143.34,143.3,3.4902]
[1728398666917,6.18,143.34,143.27,0.12502]
[1728398667124,3.49,143.32,143.27,0.12502]
[1728398667322,3.49,143.32,143.3,3.4903]
[1728398668330,9.6695,143.34,143.29,3.4906]
[1728398668529,6.18,143.34,143.27,0.12502]
[1728398668919,6.18,143.34,143.32,3.4898]
[1728398669131,6.18,143.34,143.27,0.12502]
[1728398669316,29.54,143.36,143.27,0.12502]
[1728398669517,3.4896,143.34,143.31,3.49]
[1728398670329,3.49,143.32,143.3,3.4903]
[1728398670529,29.54,143.34,143.27,0.12502]
[1728398670754,1.4415,143.33,143.27,0.12502]
[1728398670936,1.4415,143.33,143.29,3.4904]
[1728398671232,1.4415,143.33,143.27,0.12502]
[1728398671432,4.9312,143.33,143.3,3.4902]
[1728398671627,1.4415,143.33,143.27,0.12502]
[1728398672223,3.4902,143.31,143.29,3.4905]
[1728398672526,1.4415,143.33,143.27,0.12502]
[1728398672921,3.4899,143.32,143.28,3.4906]
[1728398673123,1.4415,143.33,143.27,0.12502]
[1728398673934,3.4902,143.31,143.28,3.4907]
[1728398674151,3.4902,143.31,143.27,0.12502]
[1728398674624,3.4902,143.31,143.28,3.4907]
[1728398676831,23.3512,143.33,143.3,3.4903]
[1728398677426,3.4897,143.33,143.31,3.4901]
[1728398677623,3.4893,143.35,143.28,18.42]
[1728398677823,24.6,143.36,143.28,18.42]
[1728398678024,24.6,143.36,143.32,3.4897]
[1728398678230,3.4892,143.35,143.32,3.4897]
[1728398678428,24.6,143.36,143.32,3.4897]
[1728398679024,3.4895,143.34,143.32,3.4897]
[1728398680562,3.4895,143.34,143.31,3.49]
[1728398681239,3.4895,143.34,143.32,3.4898]
[1728398681431,3.4893,143.35,143.27,0.12502]
[1728398681733,24.6,143.36,143.27,0.12502]
[1728398682332,6.18,143.36,143.28,18.42]
[1728398682532,11.18858987,143.38,143.3,18.42]
[1728398682832,11.18858987,143.38,143.3,24.6]
[1728398683632,3.489,143.36,143.33,3.4895]
[1728398685345,3.57578987,143.38,143.3,24.6]
[1728398685639,26.04272,143.39,143.31,1.3488]
[1728398685841,0.12502,143.39,143.33,18.42]
[1728398686343,0.12502,143.39,143.34,6.18]
[1728398686538,0.12502,143.39,143.38,3.4884]
[1728398688641,0.12502,143.39,143.34,6.18]
[1728398689045,3.61332,143.39,143.36,3.4888]
[1728398689342,0.12502,143.39,143.34,6.18]
[1728398690048,0.12502,143.39,143.38,3.4884]
[1728398691249,11.61128334,143.39,143.34,6.18]
[1728398691451,11.48626334,143.38,143.34,6.18]
[1728398691641,11.48626334,143.37,143.35,3.4891]
[1728398691847,27.16237164,143.36,143.34,6.18]
[1728398692046,11.48626334,143.35,143.34,6.18]
[1728398692240,0.12502,143.39,143.34,6.18]
[1728398693050,0.12502,143.39,143.37,3.4886]
[1728398694546,0.12502,143.39,143.38,3.4884]
[1728398696259,0.12502,143.45,143.37,18.42]
[1728398696463,3.61182,143.45,143.38,9.63688833]
[1728398696862,3.61182,143.45,143.41,3.4875]
[1728398697570,3.487,143.44,143.41,0.54351581]
[1728398697771,3.487,143.44,143.38,9.63688833]
[1728398697964,0.12502,143.45,143.39,18.42]
[1728398698269,0.12502,143.45,143.43,3.4871]
[1728398698458,0.12502,143.45,143.39,18.42]
[1728398698659,0.12502,143.45,143.4,11.46459323]
[1728398698958,0.12502,143.45,143.41,11.46459323]
[1728398699161,0.12502,143.45,143.42,11.46459323]
[1728398699356,0.12502,143.45,143.43,9.53226097]
[1728398699567,0.12502,143.45,143.43,3.487]
[1728398700564,0.12502,143.45,143.44,3.4869]
[1728398700770,17.4465,143.59,143.44,3.4869]
[1728398700771,337.0,143.61,143.44,6.04217888]
[1728398701065,337.0,143.61,143.43,24.58]
[1728398701066,3.4852,143.52,143.48,3.4858]
[1728398701266,3.55810941,143.53,143.48,3.4858]
[1728398701767,3.55810941,143.53,143.45,18.42]
[1728398701957,3.4851,143.52,143.49,3.4857]
[1728398702159,3.55810941,143.53,143.45,18.42]
[1728398702359,3.4851,143.52,143.46,11.42740784]
[1728398702565,3.4851,143.52,143.47,11.42716315]
[1728398702766,18.42,143.54,143.45,18.42]
[1728398702967,18.42,143.54,143.46,11.42706898]
[1728398702968,3.43785591,143.53,143.46,11.42706898]
[1728398703237,18.42,143.52,143.47,6.16]
[1728398703375,18.54502,143.51,143.42,1.3422]
[1728398703672,18.54502,143.51,143.43,17.57879251]
[1728398703673,3.4864,143.47,143.43,17.57879251]
[1728398703864,3.4864,143.47,143.44,11.41879251]
[1728398704069,18.42,143.49,143.43,6.16]
[1728398704070,3.4859,143.49,143.43,6.16]
[1728398704270,18.42,143.5,143.44,11.41224351]
[1728398704471,18.42,143.49,143.41,6.16]
[1728398704669,25.9171,143.49,143.42,11.41349358]
[1728398704870,25.9171,143.49,143.43,11.41349358]
[1728398705068,3.4861,143.48,143.45,3.4865]
[1728398705273,1.48132,143.51,143.43,18.42]
[1728398705469,1.48132,143.51,143.44,11.40781494]
[1728398705670,1.48132,143.51,143.45,6.01839223]
[1728398705878,1.48132,143.51,143.43,18.42]
[1728398706077,1.48132,143.51,143.44,11.40800119]
[1728398706376,4.96662,143.51,143.48,3.4858]
[1728398707174,3.61032,143.51,143.48,3.4859]
[1728398707570,0.12502,143.51,143.48,3.4859]
[1728398707769,0.12502,143.51,143.47,3.4861]
[1728398707770,3.4855,143.5,143.47,3.4861]
[1728398707969,0.12502,143.51,143.45,24.58]
[1728398708271,18.42,143.5,143.44,3.4869]
[1728398708478,18.42,143.5,143.42,7.4891]
[1728398708774,18.42,143.48,143.43,11.39036659]
[1728398708975,18.42,143.48,143.43,3.4871]
[1728398709168,18.42,143.48,143.42,6.16]
[1728398709474,18.42,143.48,143.42,3.4873]
[1728398709864,3.487,143.44,143.42,3.4873]
[1728398710065,18.42,143.48,143.42,3.4873]
[1728398710266,3.4868,143.45,143.42,3.4873]
[1728398710879,3.4868,143.45,143.43,3.4871]
[1728398711376,18.42,143.46,143.39,6.28502]
[1728398711576,24.58,143.46,143.39,6.28502]
[1728398711776,6.16,143.46,143.39,24.70502]
[1728398711977,3.4868,143.45,143.42,3.4873]
[1728398712180,1.3574,143.47,143.39,24.70502]
[1728398712374,10.9773,143.49,143.41,18.42]
[1728398712578,7.4914,143.49,143.46,3.4863]
[1728398712775,1.3314,143.49,143.41,18.42]
[1728398713080,3.4863,143.47,143.45,3.4866]
[1728398713274,3.4863,143.47,143.41,18.42]
[1728398713275,1.3314,143.49,143.41,18.42]
[1728398713478,3.4861,143.48,143.41,18.42]
[1728398713678,3.4861,143.48,143.45,3.4866]
[1728398714477,6.16,143.5,143.46,3.4863]